Cogmind - Beta 14 *** ADVENTURER MODE // 2025.02.28 @ 23:16:27 Player: tycho Result: Self-destructed Performance ------------- Evolutions (4) 2000 Regions Visited (8) 1600 Robots Destroyed (110) 550 Value Destroyed (3931) 3931 Prototype IDs (7) 140 Alien Tech Used (0) 0 Bonus (410) 410 TOTAL SCORE: 8631 Bonus ------- High Alert Combat Kills 52 Follower Combat Kills 384 Friendly Fire -26 Cogmind --------- Core Integrity 687/850 Matter 300/300 Energy 550/550 System Corruption 0% Temperature Warm (192) Movement Walking (200) Ox1 Location -6/Factory Parts ------- > --- POWER (2) -------- Cold Fusion Reactor > --- PROPULSION (4) --- Improved Titanium Leg > --- UTILITY (5) ------ Medium Storage Unit Energy Well > --- WEAPON (4) ------- Advanced Beam Cannon Axe > --- INVENTORY (10) --- Improved Deuterium Engine Gravity Neutralizer Energy Filter Improved Particle Charger Microactuators Hardened Light Armor Plating Drone Bay (2/2) Gatling Laser Scatter Rocket Array Peak State ------------ > --- POWER ------------ Fusion Compressor Cold Fusion Reactor > --- PROPULSION ------- Carbon-fiber Leg Improved Titanium Leg Improved Titanium Leg Improved Titanium Leg > --- UTILITY ---------- Cooling System Improved Cooling System Medium Storage Unit Energy Well Powered Armor > --- WEAPON ----------- Precision Beam Rifle Precision Beam Rifle Advanced Beam Cannon Axe > --- INVENTORY -------- Improved Deuterium Engine Carbon-fiber Leg Gravity Neutralizer Energy Filter Improved Particle Charger Microactuators Hardened Light Armor Plating Drone Bay Gatling Laser Scatter Rocket Array [Rating: 60] Favorites ----------- Power Ion Engine Engine Ion Engine Power Core Fusion Compressor Reactor Cold Fusion Reactor Propulsion Improved Titanium Leg Leg Improved Titanium Leg Utility Medium Storage Unit Device Improved Cooling System Storage Medium Storage Unit Processor Targeting Computer Protection Hardened Light Armor Plating Weapon Gatling Laser Energy Gun Gatling Laser Energy Cannon Heavy Ion Cannon Slashing Weapon Katana Build | -11 -10 -10 -10 -9 -8 -7 -7 -6 ------- Run | Yrd Mat Min Exi Min Mat Fac Sto Fac Slots Evolved 8 | . . . . . 4 2 . 2 Power 1 | . . . . . . 1 . . Propulsion 2 | . . . . . 1 . . 1 Utility 3 | . . . . . 2 . . 1 Weapon 2 | . . . . . 1 1 . . Parts Attached 60 | 6 3 . . 1 15 17 9 9 Power 12 | 1 . . . . 1 4 2 4 Engine 10 | 1 . . . . 1 4 2 2 Core 1 | . . . . . . . . 1 Reactor 1 | . . . . . . . . 1 Propulsion 13 | 2 1 . . . 5 1 1 3 Treads . | . . . . . . . . . Leg 13 | 2 1 . . . 5 1 1 3 Wheel . | . . . . . . . . . Hover . | . . . . . . . . . Flight . | . . . . . . . . . Utility 17 | 1 2 . . 1 4 5 2 2 Device 6 | . 1 . . . 1 2 1 1 Storage 5 | 1 . . . 1 1 1 . 1 Processor 1 | . 1 . . . . . . . Hackware . | . . . . . . . . . Protection 5 | . . . . . 2 2 1 . Artifact . | . . . . . . . . . Weapon 18 | 2 . . . . 5 7 4 . Energy Gun 11 | 2 . . . . 3 4 2 . Energy Cannon 5 | . . . . . 2 2 1 . Ballistic Gun . | . . . . . . . . . Ballistic Cannon . | . . . . . . . . . Launcher . | . . . . . . . . . Special Weapon . | . . . . . . . . . Impact Weapon . | . . . . . . . . . Slashing Weapon 2 | . . . . . . 1 1 . Piercing Weapon . | . . . . . . . . . Special Melee Weapon . | . . . . . . . . . Unidentified Prototypes 3 | . . . . . . . 2 1 Parts Lost 15 | . . . . . . 3 2 10 Power 1 | . . . . . . . . 1 Propulsion 5 | . . . . . . 1 . 4 Utility 5 | . . . . . . . 2 3 Weapon 4 | . . . . . . 2 . 2 Highest Loss Streak 10 | . . . . . . 3 2 10 To Critical Strikes 1 | . . . . . . . . 1 Average Slot Usage (%) 99 | . 99 100 100 100 99 99 99 95 Engine 13 | . 14 14 14 14 9 14 15 5 Leg 24 | . 28 28 28 28 27 22 22 24 Device 6 | . 1 . . . 8 7 13 12 Storage 13 | . 14 14 14 14 18 15 8 12 Processor 3 | . 12 14 14 14 . . . . Protection 5 | . . . . . 9 7 6 5 Energy Gun 18 | . 28 28 28 28 18 14 15 12 Energy Cannon 5 | . . . . . 8 7 7 6 Slashing Weapon 4 | . . . . . . 7 7 6 Peak Build Rating 60 | 6 7 7 7 8 34 48 49 60 Average Rating 32 | 4 6 7 7 7 22 44 48 57 On Entrance 18 | . 6 7 7 7 8 34 47 49 Naked Turns . | . . . . . . . . . Heaviest Build 67 | 14 15 14 14 19 35 61 67 65 Greatest Support 75 | 20 20 20 20 20 60 60 60 75 Greatest Overweight (x) 1 | 1 . . . . . 1 1 1 Average Overweight (x) . | . . . . . . . . . Largest Inventory Capacity 10 | 8 8 8 8 10 10 10 10 10 Average Capacity 9 | 7 8 8 8 9 10 10 10 10 Most Carried 10 | 2 8 8 8 10 10 10 10 10 Average Carried 8 | . 6 8 8 9 8 9 9 9 Final Capacity 10 | 8 8 8 8 10 10 10 10 10 Final Carried 10 | 2 8 8 8 10 10 7 10 9 Class Distribution -------------------- 52% | Tank 30% | Mutant 15% | Commander-Tank Dominant Class ---------------- Mutant | -10/Materials Mutant | -10/Mines Mutant | -10/Exiles Mutant | -9/Mines Tank | -8/Materials Tank | -7/Factory Commander-Tank | -7/Storage Commander-Tank | -6/Factory Resources | -11 -10 -10 -10 -9 -8 -7 -7 -6 ----------- Run | Yrd Mat Min Exi Min Mat Fac Sto Fac Matter Collected 828 | 235 55 . . 10 140 185 120 83 Remotely . | . . . . . . . . . Salvage Created 4525 | . 416 . . . 728 1606 1300 475 Parts 194 | . 20 . . . 37 73 49 15 Haulers Intercepted 3 | . 1 . . . . . 2 . Recyclers Shooed 2 | . . . . . . . 1 1 Parts Field Recycled . | . . . . . . . . . Retrieved Matter . | . . . . . . . . . Parts Self-Destructed . | . . . . . . . . . Prevented . | . . . . . . . . . Kills | -11 -10 -10 -10 -9 -8 -7 -7 -6 ------- Run | Yrd Mat Min Exi Min Mat Fac Sto Fac Combat Hostiles Destroyed 81 | . 7 . . . 15 31 22 6 Melee 10 | . . . . . . 3 7 . Guns 50 | . 6 . . . 10 22 9 3 Cannons 10 | . . . . . 2 4 2 2 Classes Destroyed 15 | . 6 . . . 3 5 . 1 Worker 4 | . . . . . . 1 2 1 Builder 4 | . 1 . . . 1 1 1 . Tunneler 2 | . . . . . . 1 1 . Hauler 3 | . 1 . . . . . 2 . Recycler 5 | . 1 . . . . 1 2 1 Operator 2 | . . . . . 1 1 . . Watcher 9 | . 3 . . . 2 3 . 1 Swarmer 16 | . 3 . . . 3 4 4 2 Grunt 37 | . 4 . . . 7 15 9 2 Brawler 3 | . . . . . 1 1 . 1 Sentry 11 | . . . . . 4 1 6 . Demolisher 1 | . . . . . . . . 1 Hunter 3 | . . . . . . 2 1 . Programmer 9 | . . . . . . 7 2 . Heavy 1 | . . . . . . 1 . . Best Kill Streak 5 | . 4 . . . 5 4 3 3 Combat Bots Only 4 | . 3 . . . 3 4 3 3 Max Kills in Single Turn 2 | . 1 . . . 2 2 1 1 Gunslinging . | . . . . . . . . . Exploded . | . . . . . . . . . Melee 1 | . . . . . . 1 1 . Uniques/NPCs Destroyed . | . . . . . . . . . Combat | -11 -10 -10 -10 -9 -8 -7 -7 -6 -------- Run | Yrd Mat Min Exi Min Mat Fac Sto Fac Hostile Shots Fired 554 | . 31 . . 4 44 142 191 142 Missed 186 | . 11 . . 3 16 47 65 44 Damage Taken 3960 | . 154 . . 9 312 1226 986 1273 Core 474 | . 36 . . 9 30 157 79 163 Absorbed by Shields . | . . . . . . . . . Ignored by Resistances 1172 | . 49 . . 3 91 359 315 355 Regen/Repaired (Parts) 252 | . . . . . . 116 136 . Core Remaining (%) 85 | 100 . . . 82 94 . 66 . Volleys Fired 183 | . 36 . . . 37 53 37 20 Largest 3 | . 2 . . . 3 3 3 3 Hottest 240 | . 100 . . . 220 240 225 190 Shots Fired 481 | . 72 . . . 95 145 109 60 Gun 347 | . 72 . . . 68 96 71 40 Cannon 134 | . . . . . 27 49 38 20 Launcher . | . . . . . . . . . Special . | . . . . . . . . . Kinetic . | . . . . . . . . . Thermal 481 | . 72 . . . 95 145 109 60 Explosive . | . . . . . . . . . Electromagnetic . | . . . . . . . . . Robot Hit Streak 43 | . 19 . . . 12 22 43 23 Robot Miss Streak 5 | . 4 . . . 3 3 5 2 Penetration Max . | . . . . . . . . . Secondary Targets 3 | . 2 . . . . 1 . . Max Gunslinging Chain 1 | . 1 . . . . 1 . . Shots Hit Robots 409 | . 56 . . . 73 123 106 51 Core Hits 225 | . 19 . . . 40 88 58 20 Critical Kills 2 | . . . . . 2 . . . Critical Parts Destroyed . | . . . . . . . . . Critical Strikes 24 | . 6 . . . 8 1 7 2 Burn 18 | . 6 . . . 6 . 4 2 Meltdown 2 | . . . . . 2 . . . Sever 4 | . . . . . . 1 3 . Melee Attacks 44 | . . . . . . 20 23 1 Impact . | . . . . . . . . . Slashing 44 | . . . . . . 20 23 1 Piercing . | . . . . . . . . . Sneak Attacks 11 | . . . . . . 5 5 1 Combat Hostiles . | . . . . . . . . . Follow-up Attacks . | . . . . . . . . . Damage Inflicted 9292 | . 708 . . . 1213 3600 2812 959 Guns 5616 | . 700 . . . 892 2117 1312 595 Cannons 1884 | . . . . . 310 662 604 308 Explosions . | . . . . . . . . . Melee 1773 | . . . . . . 821 896 56 Ramming 19 | . 8 . . . 11 . . . Kinetic . | . . . . . . . . . Thermal 7500 | . 700 . . . 1202 2779 1916 903 Explosive . | . . . . . . . . . Electromagnetic . | . . . . . . . . . Impact . | . . . . . . . . . Slashing 1773 | . . . . . . 821 896 56 Piercing . | . . . . . . . . . Highest Corruption 3 | . . . . . . 3 3 . Average Corruption 2 | . . . . . . 2 3 . Corruption Purged . | . . . . . . . . . Corruption Blocked . | . . . . . . . . . Effects 33 | . . . . . . 6 27 . Message Errors 11 | . . . . . . 3 8 . Matter Fused 7 | . . . . . . 2 5 . Heat Flow Errors 4 | . . . . . . . 4 . Energy Discharges 1 | . . . . . . . 1 . Data Loss (minor) 6 | . . . . . . 1 5 . Data Loss (major) 2 | . . . . . . . 2 . Misfires 1 | . . . . . . . 1 . Weapon Failures 1 | . . . . . . . 1 . Overload Shots . | . . . . . . . . . Overflow Damage 179 | . . . . . . 97 82 . Projectiles 10 | . . . . . . 1 9 . Explosions . | . . . . . . . . . Melee 169 | . . . . . . 96 73 . Knockbacks . | . . . . . . . . . Impact . | . . . . . . . . . Kinetic . | . . . . . . . . . Secondary . | . . . . . . . . . Self-Inflicted Damage . | . . . . . . . . . Shots . | . . . . . . . . . Rammed . | . . . . . . . . . Targets Rammed 5 | . 2 . . . 3 . . . Kicked 5 | . 2 . . . 3 . . . Crushed . | . . . . . . . . . Highest Temperature 369 | . 302 . . . 369 312 351 307 Average Temperature 97 | . 104 . . . 85 103 80 145 Received Heat Transfer 1230 | . 87 . . . 171 309 387 276 Effects 2 | . . . . . 1 . 1 . Energy Bleed 2 | . . . . . 1 . 1 . Siege Activations . | . . . . . . . . . Robots Corrupted . | . . . . . . . . . Combat Hostiles . | . . . . . . . . . Parts Fried . | . . . . . . . . . Impact Corruptions . | . . . . . . . . . Robots Melted 13 | . 2 . . . 3 2 4 2 Combat Hostiles 11 | . 1 . . . 3 2 4 1 Parts Melted 70 | . 7 . . . 13 22 21 7 Heat Transferred 17594 | . 2516 . . . 3355 5617 4108 1998 Parts Sabotaged . | . . . . . . . . . Parts Stolen . | . . . . . . . . . Parts Stripped . | . . . . . . . . . Power Chain Reactions . | . . . . . . . . . Alert | -11 -10 -10 -10 -9 -8 -7 -7 -6 ------- Run | Yrd Mat Min Exi Min Mat Fac Sto Fac Peak Influence 534 | . 202 16 . . 296 330 534 425 Initial 208 | . . 16 . . . 35 22 208 Average 124 | . 42 16 . . 143 108 206 251 Maximum Alert Level 2 | . 1 . . . 1 1 2 2 Low Security (%) 74 | 100 98 100 . 100 78 81 54 12 Level 1 22 | . 1 . . . 21 18 35 72 Level 2 3 | . . . . . . . 10 14 Level 3 . | . . . . . . . . . Level 4 . | . . . . . . . . . Level 5 . | . . . . . . . . . High Security . | . . . . . . . . . Max Security . | . . . . . . . . . Squads Dispatched 21 | . 1 . . . 1 9 8 2 Investigation 8 | . 1 . . . . 3 4 . Extermination 6 | . . . . . . 4 2 . Reinforcement 5 | . . . . . 1 2 2 . Assault 2 | . . . . . . . . 2 Garrison . | . . . . . . . . . Intercept . | . . . . . . . . . Searches Triggered . | . . . . . . . . . Construction Impeded . | . . . . . . . . . Haulers Reinforced 1 | . . . . . . . 1 . Active Scanning Responses . | . . . . . . . . . Cargo Convoy Interrupts 1 | . . . . . . 1 . . Stealth | -11 -10 -10 -10 -9 -8 -7 -7 -6 --------- Run | Yrd Mat Min Exi Min Mat Fac Sto Fac Distress Signals 5 | . 1 . . . 1 2 1 . Communications Jammed . | . . . . . . . . . Distress Signals . | . . . . . . . . . Times Spotted 129 | . 11 . . 1 19 41 33 24 Peak Tracking Total 9 | . 3 . . 1 3 5 7 9 Tactical Retreats 8 | . . . . . 1 4 3 . Traps | -11 -10 -10 -10 -9 -8 -7 -7 -6 ------- Run | Yrd Mat Min Exi Min Mat Fac Sto Fac Traps Triggered 1 | . . . . . 1 . . . Indirectly . | . . . . . . . . . Trap Hack Attempts . | . . . . . . . . . Triggered . | . . . . . . . . . Disarmed . | . . . . . . . . . Reprogrammed 6 | . 6 . . . . . . . Reused . | . . . . . . . . . Traps Extracted . | . . . . . . . . . Installed . | . . . . . . . . . Triggered 1 | . . . . . . 1 . . Most Traps Carried 3 | . . . . 3 3 . . . Machines | -11 -10 -10 -10 -9 -8 -7 -7 -6 ---------- Run | Yrd Mat Min Exi Min Mat Fac Sto Fac Machines Disabled 4 | . . . . . 1 3 . . Max in Single Turn 3 | . . . . . 1 3 . . Machines Repaired . | . . . . . . . . . Machines Dismantled . | . . . . . . . . . Machines Sabotaged . | . . . . . . . . . Overloaded Fab Kills . | . . . . . . . . . Hacking | -11 -10 -10 -10 -9 -8 -7 -7 -6 --------- Run | Yrd Mat Min Exi Min Mat Fac Sto Fac Machines Accessed 23 | . 6 . . . 2 6 9 . Terminals 17 | . 5 . . . 2 3 7 . Fabricators 1 | . . . . . . 1 . . Repair Stations 4 | . 1 . . . . 1 2 . Recycling Units . | . . . . . . . . . Scanalyzers 1 | . . . . . . 1 . . Garrison Access . | . . . . . . . . . Total Hacks 64 | . 18 . . . 4 18 24 . Successful 32 | . 9 . . . 2 10 11 . Failed 32 | . 9 . . . 2 8 13 . Catastrophic 5 | . . . . . . 2 3 . Database Lockouts . | . . . . . . . . . Manual 7 | . . . 1 . . . 6 . Terminals 43 | . 15 . . . 4 5 19 . Fabricators 4 | . . . . . . 4 . . Repair Stations 15 | . 3 . . . . 7 5 . Recycling Units . | . . . . . . . . . Scanalyzers 2 | . . . . . . 2 . . Garrison Access . | . . . . . . . . . Terminal Hacks 21 | . 8 . . . 2 2 9 . Record 4 | . . . . . . . 4 . Part Schematic 1 | . . . . . . 1 . . Prototype ID Bank 2 | . 1 . . . 1 . . . Open Door 3 | . . . . . . . 3 . Open DSF 1 | . . . . . . 1 . . Branch Access Points 1 | . 1 . . . . . . . Emergency Access Points 1 | . 1 . . . . . . . Repair Station Index 1 | . . . . . . . 1 . Unreport Threat 1 | . 1 . . . . . . . Locate Traps 2 | . 2 . . . . . . . Reprogram Traps 1 | . 1 . . . . . . . Registered Prototypes 1 | . 1 . . . . . . . Zone Layout 2 | . . . . . 1 . 1 . Fabricator Hacks 3 | . . . . . . 3 . . Network Status 1 | . . . . . . 1 . . Load Schematic 1 | . . . . . . 1 . . Build 1 | . . . . . . 1 . . Repair Station Hacks 8 | . 1 . . . . 5 2 . Scan Component 5 | . 1 . . . . 3 1 . Repair 3 | . . . . . . 2 1 . Recycling Unit Hacks . | . . . . . . . . . Scanalyzer . | . . . . . . . . . Garrison Access Hacks . | . . . . . . . . . Unauthorized Hacks . | . . . . . . . . . Terminals . | . . . . . . . . . Fabricators . | . . . . . . . . . Repair Stations . | . . . . . . . . . Recycling Units . | . . . . . . . . . Scanalyzers . | . . . . . . . . . Garrison Access . | . . . . . . . . . Data Cores Recovered . | . . . . . . . . . Used . | . . . . . . . . . Hacking Detections 19 | . 5 . . . 2 5 7 . Full Trace Events 10 | . 3 . . . . 3 4 . Feedback Events . | . . . . . . . . . Feedback Blocked . | . . . . . . . . . Robot Schematics Acquired . | . . . . . . . . . Robots Built . | . . . . . . . . . Authchips . | . . . . . . . . . Time . | . . . . . . . . . Total Robot Build Rating . | . . . . . . . . . Part Schematics Acquired 1 | . . . . . . 1 . . Parts Built 2 | . . . . . . 2 . . Authchips . | . . . . . . . . . Time 47 | . . . . . . 47 . . Total Part Build Rating 10 | . . . . . . 10 . . Parts Repaired 3 | . . . . . . 2 1 . Time 60 | . . . . . . 38 22 . Parts Recycled . | . . . . . . . . . Recycled Matter . | . . . . . . . . . Retrieved Matter . | . . . . . . . . . Retrieved Components . | . . . . . . . . . Parts Scanalyzed . | . . . . . . . . . Part Schematics Acquired . | . . . . . . . . . Parts Damaged . | . . . . . . . . . Bothacking | -11 -10 -10 -10 -9 -8 -7 -7 -6 ------------ Run | Yrd Mat Min Exi Min Mat Fac Sto Fac Used RIF Installer . | . . . . . . . . . Robots Hacked . | . . . . . . . . . Non-combat . | . . . . . . . . . Combat . | . . . . . . . . . Robot Hacks Applied . | . . . . . . . . . Relay Couplers Released . | . . . . . . . . . Fabnet Peak Effective % . | . . . . . . . . . Robots Rewired . | . . . . . . . . . Allies Hacked . | . . . . . . . . . Hacks Repelled . | . . . . . . . . . Allies | -11 -10 -10 -10 -9 -8 -7 -7 -6 -------- Run | Yrd Mat Min Exi Min Mat Fac Sto Fac Total Allies 10 | . . . . . . . 10 . Largest Group 10 | . . . . . . . 10 5 Highest-Rated Group 173 | . . . . . . . 173 93 Highest-Rated Ally 29 | . . . . . . . 29 29 Total Orders . | . . . . . . . . . Ally Attacks 151 | . . . . . . . 79 72 Total Damage 1701 | . . . . . . . 944 757 Kills 16 | . . . . . . . 10 6 Allies Corrupted . | . . . . . . . . . Allies Melted . | . . . . . . . . . Intel | -11 -10 -10 -10 -9 -8 -7 -7 -6 ------- Run | Yrd Mat Min Exi Min Mat Fac Sto Fac Robot Analysis Total . | . . . . . . . . . Derelict Logs Recovered 1 | . . 1 . . . . . . Drone Launches . | . . . . . . . . . Drone Recoveries . | . . . . . . . . . Exploration | -11 -10 -10 -10 -9 -8 -7 -7 -6 ------------- Run | Yrd Mat Min Exi Min Mat Fac Sto Fac Turns Passed 7749 | 82 975 188 581 423 919 2572 1491 518 Spaces Moved 4903 | 65 702 157 485 282 600 1522 753 337 Core 17 | 17 . . . . . . . . Treads . | . . . . . . . . . Legs 4886 | 48 702 157 485 282 600 1522 753 337 Wheels . | . . . . . . . . . Hover . | . . . . . . . . . Flight . | . . . . . . . . . Fastest Speed 50 | 50 120 120 120 120 120 130 130 125 Average Speed 134 | 110 120 120 120 120 125 140 165 129 Slowest Speed 200 | 120 120 120 120 120 130 200 200 200 Overloaded Moves . | . . . . . . . . . Propulsion Burnouts . | . . . . . . . . . Robots Hopped . | . . . . . . . . . Cave-ins Triggered . | . . . . . . . . . Exploration Rate (%) 41 | 5 79 24 89 54 33 26 59 8 Regions Visited 8 Branch Regions 4 Pre-discovered Areas . | . . . . . . . . . Known Exits Taken 1 | . 1 . . . . . . . Unknown Exits Taken 7 | 1 . 1 1 1 1 1 1 . Scrap Searched . | . . . . . . . . . Spaces Dug . | . . . . . . . . . Terrain Destroyed 34 | . . . . . . 29 5 . Melee . | . . . . . . . . . Projectile 9 | . . . . . . 4 5 . AOE 25 | . . . . . . 25 . . Terrain Rammed . | . . . . . . . . . Walls Destroyed . | . . . . . . . . . Machines Disabled . | . . . . . . . . . Actions | -11 -10 -10 -10 -9 -8 -7 -7 -6 --------- Run | Yrd Mat Min Exi Min Mat Fac Sto Fac Total 5586 | 72 764 156 484 366 691 1807 874 372 Wait 312 | . 7 . . 80 8 176 41 . Move 4895 | 64 701 156 484 281 599 1521 752 337 Hop . | . . . . . . . . . Pick Up 41 | 2 10 . . 3 12 6 6 2 Fast Attach 11 | 6 1 . . . . 2 2 . Attach 15 | . . . . . 5 5 1 4 Detach 2 | . . . . . 1 . . 1 Swap 34 | . 2 . . 1 10 10 6 5 Drop 44 | . 5 . . 1 16 14 6 2 Fire 183 | . 36 . . . 37 53 37 20 Melee 44 | . . . . . . 20 23 1 Ram . | . . . . . . . . . Kick 5 | . 2 . . . 3 . . . Crush . | . . . . . . . . . Escape Stasis . | . . . . . . . . . Rewire . | . . . . . . . . . Trap . | . . . . . . . . . Miscellaneous . | . . . . . . . . . Route ------- -11/Scrapyard -10/Materials (discovered 3 exits: [*Mat] / *Min x2) -10/Mines (discovered 2 exits: *Exi / Sub) -10/Exiles -9/Mines -8/Materials -7/Factory -7/Storage (discovered 2 exits: *Fac / [Rec]) -6/Factory History --------- Turn | Location | Event 15 | -11/Scrapyard | Discovered new exit (range 15) 83 | -11/Scrapyard | Entered Materials 316 | -10/Materials | Build established: Mutant 375 | -10/Materials | Identified exit to Mines 864 | -10/Materials | Discovered new exit (range 10) 1058 | -10/Materials | Entered Mines 1210 | -10/Mines | Identified exit to Subcaves 1235 | -10/Mines | Deemed a non-threat by the Exiles lab entrance 1236 | -10/Mines | Discovered new exit (range 5) 1246 | -10/Mines | Entered Exiles 1246 | -10/Exiles | Found Exiles lab abandoned 1776 | -10/Exiles | Discovered new exit (range 11) 1827 | -10/Exiles | Entered Mines 1925 | -9/Mines | Found a hidden stash of uninstalled traps 2119 | -9/Mines | Assembled infested the area 2238 | -9/Mines | Discovered new exit (range 12) 2250 | -9/Mines | Entered Materials 2250 | -8/Materials | Evolved 4 slots: Propulsion x1, Utility x2, Weapon x1 2593 | -8/Materials | Build established: Tank 2892 | -8/Materials | Discovered new exit (range 15) 3169 | -8/Materials | Entered Factory 3169 | -7/Factory | Evolved 2 slots: Power x1, Weapon x1 4351 | -7/Factory | Repaired Imp. Ion Engine 4374 | -7/Factory | Repaired Gatling Laser 4539 | -7/Factory | Cargo convoy interrupted 4796 | -7/Factory | Discovered new exit (range 4) 5596 | -7/Factory | Fabricated Imp. Particle Charger (x2) 5740 | -7/Factory | Lost 3 parts (1n2w) 5741 | -7/Factory | Entered Storage 6054 | -7/Storage | Found Powered Armor 6138 | -7/Storage | Repaired Imp. Titanium Leg 6408 | -7/Storage | Assisted by bots powering up and referring to "LRC-V3" 6411 | -7/Storage | Discovered new exit (range 11) 6704 | -7/Storage | Found Prototype Launcher 6725 | -7/Storage | Build established: Commander-Tank 7175 | -7/Storage | Discovered new exit (range 9) 7232 | -7/Storage | Entered Factory 7232 | -6/Factory | Accompanied by 5 allies 7232 | -6/Factory | Evolved 2 slots: Propulsion x1, Utility x1 7582 | -6/Factory | First assault squad dispatched 7720 | -6/Factory | Lost 4 allies 7750 | -6/Factory | Self-destructed Last Messages --------------- 07720_ Wall collapses. 07720_ Slug penetrates Wall. 07720_ Imp. Titanium Leg destroyed. 07720_ Slug penetrates Wall. 07727_ Angular Momentum Engine destroyed. 07727_ Critical hit (Burn: +37). 07730_ Slug penetrates Wall. 07740_ Carbon-fiber Leg destroyed. 07740_ Slug penetrates Wall. 07747_ G-67 Veteran destroyed. 07749_ Slug penetrates Wall. 07749_ Critical hit (Destroy). 07749_ Prc. Beam Rifle destroyed. 07750_ C-30 ARC bursts open, deploying its payload. 07750_ G-67 Veteran unfolds itself. 07750_ L-41 Fighter unfolds itself. 07750_ G-50 Soldier unfolds itself. 07750_ L-41 Fighter unfolds itself. 07750_ E-15 Imp unfolds itself. 07750_ Prc. Beam Rifle destroyed. Map ----- +----------------------------------------------------+ | ????????????????????????????????????????????????? | | ????????????????????????????????????????????????? | | ????????????????????????????????????????????????? | | ???????????????????????????????????????? | | ???????????????????????????????????????? | | ??????????????????????????????????????? | | ???????????????????????? ???????????? ? | | ???????????????????????? #?????????? ??? | | ???????????????????????? #??????????? ????? | | ?????????############### #??????????? ??????? | | ?????????# #???????????????????? | | ?????????# #? ???????????????? | | ?????????+ """"""""" #? ???????????????? | | ?????????# #? ???????????????? | | ???????????# "" ## #??????????????? | | ???????????# """ ^ ## #??????????????? | | ???????????#^ "F %% %## #?????????###### | | ???????????# """ !!^ % ## ########### | | ???????????# """ !!]!** ## ## # | | ???????????# """ !] *! % # # !# ! | | ???????????# # # ! # | | ???????????# % m*g% # # # | | ???#########+ #+#%g #? ?# # | | ???# # #! #? ! ?# # ! | | ???# # #?# #?# # | | ???# #= # #@ #?# #?# ! # | | ???# /% + # =### ### # | | ???# #"## # % %%%######+#### | | ???# ?# # % #??# | | ???# ## # #??# | | ???# ## # #??# | | ???########## ## # [[k #??# | | ??????????# ###### [[= #??# | | ???????#### # #### [= #### | | ???????# | | ???????# e | | ???????# l g | | ???????# % lg #######+######## | | ???????# #??# ! #??# | | ???????# #??# #??# | | ???????# ! #??# #??# | | ???????##+# %* #??# #??# | | ????????? [ ####! #??# #??# | | ??????? ???#%" #??# """" ! #??? | | ?????"""""" ??? " ???# """" #??? | | ?????"""""" ??? ????# """" #??? | | ????????""" ???##############?????# """" #??? | | ??????????" ??????????????????????##########??? | | ?????????? ????????????????????????????????????+ | | ?????????? ????????????????????????????????????? | +----------------------------------------------------+ Best States ------------- Heat Dissipation 86 Energy Generation 30 Energy Capacity 750 Matter Stores 300 Matter Capacity 300 Sight Range 16 Robot Scan Range 14 Terrain Scan Density 10 Armor Coverage 400 Resistance: KI 20 Resistance: TH 20 Resistance: EX 20 Resistance: EM 20 Resistance: I 20 Resistance: S 20 Resistance: P 20 Evasion (%) 55 Targeting Accuracy 5 Particle Charging 20 Offensive Hacking 10 Item Schematics ----------------- Imp. Particle Charger | -7/Factory | Hacked Robot Schematics ------------------ None Fabricated ------------ Imp. Particle Charger | x2 | -7/Factory Alien Tech Used ----------------- None Achievements -------------- I Survived The Infestation Significant Disruption Challenges ------------ None Game ------ Seed ProcessingThermalThrower Manual? 0 Play Time 00:55:03 Cumulative 25.4 hours Start 2025.02.28 @ 16:35:19 End 2025.02.28 @ 23:16:27 Sessions 2 Manual Loads 0 Difficulty Adventurer Special Mode None Game No. 29 Rogue 0 Adventurer 29 Explorer 0 Win Type - Total 0 Types 0/0/0/0/0/0/0/0/0 Lore% 15 Gallery% 29 Achievement% 23 Wizard Run 0 Options --------- Layout 1 ASCII 0 Keyboard 1 Movement Arrows Keybinds 0 Fullscreen 1 Font 32/SmallcapsGlow Map View 77x35 Zoom Use 0% Tactical HUD 1 Map Filters NONE Filters NONE Steam 1 RUN: 580db80c-8f75-46c6-8505-231c2a2c4dcc